[Event "Titled Tuesday Blitz May 23 Early 2023"]
[White "Bortnyk, Olexandr"]
[Black "Papasimakopoulos, Alexandros"]
[WhiteFideId "14120828"]
[BlackFideId "4244125"]
[WhiteElo "2734"]
[BlackElo "2359"]
[Result "1-0"]
[Round "03"]
[TimeControl "180+2"]
[Date "2023.05.23"]
[WhiteClock "0:00:04"]
[BlackClock "0:00:05"]

1. e4 {[%clk 0:02:49]}  e6 {[%clk 0:02:59]} 2. d4 {[%clk 0:02:49]}  d5 {[%clk 0:03:00]} 3. Nc3 {[%clk 0:02:50]}  Bb4 {[%clk 0:03:00]} 4. Qd3 {[%clk 0:02:50]}  dxe4 {[%clk 0:02:56]} 5. Qxe4 {[%clk 0:02:51]}  Nf6 {[%clk 0:02:57]} 6. Qh4 {[%clk 0:02:51]}  Nc6 {[%clk 0:02:57]} 7. Nf3 {[%clk 0:02:50]}  Ne7 {[%clk 0:02:58]} 8. Bd3 {[%clk 0:02:44]}  Nf5 {[%clk 0:02:58]} 9. Bxf5 {[%clk 0:02:42]}  exf5 {[%clk 0:02:58]} 10. O-O {[%clk 0:02:41]}  Bxc3 {[%clk 0:02:41]} 11. bxc3 {[%clk 0:02:38]}  Be6 {[%clk 0:02:38]} 12. Bg5 {[%clk 0:02:32]}  h6 {[%clk 0:02:38]} 13. Rfe1 {[%clk 0:02:30]}  O-O {[%clk 0:02:35]} 14. Bxf6 {[%clk 0:02:26]}  Qxf6 {[%clk 0:02:35]} 15. Qxf6 {[%clk 0:02:25]}  gxf6 {[%clk 0:02:36]} 16. Nd2 {[%clk 0:02:23]}  c5 {[%clk 0:02:29]} 17. dxc5 {[%clk 0:02:13]}  Rfc8 {[%clk 0:02:27]} 18. Nb3 {[%clk 0:02:13]}  Kf8 {[%clk 0:02:07]} 19. f3 {[%clk 0:01:56]}  b6 {[%clk 0:01:53]} 20. Kf2 {[%clk 0:01:47]}  bxc5 {[%clk 0:01:52]} 21. Nc1 {[%clk 0:01:31]}  Rab8 {[%clk 0:01:37]} 22. Nd3 {[%clk 0:01:32]}  Bc4 {[%clk 0:01:37]} 23. Re2 {[%clk 0:01:20]}  a5 {[%clk 0:01:35]} 24. a4 {[%clk 0:01:18]}  Rc7 {[%clk 0:01:20]} 25. Rd1 {[%clk 0:01:14]}  Bxd3 {[%clk 0:01:20]} 26. Rxd3 {[%clk 0:01:14]}  Rb2 {[%clk 0:01:16]} 27. Rd8+ {[%clk 0:01:12]}  Kg7 {[%clk 0:01:16]} 28. Ra8 {[%clk 0:01:13]}  Ra2 {[%clk 0:01:15]} 29. Rxa5 {[%clk 0:01:13]}  Ra3 {[%clk 0:01:15]} 30. Re3 {[%clk 0:00:45]}  f4 {[%clk 0:01:12]} 31. Rd3 {[%clk 0:00:39]}  c4 {[%clk 0:01:11]} 32. Rd2 {[%clk 0:00:38]}  Rxc3 {[%clk 0:01:10]} 33. Rf5 {[%clk 0:00:36]}  Ra3 {[%clk 0:01:10]} 34. a5 {[%clk 0:00:37]}  Ra2 {[%clk 0:01:07]} 35. h4 {[%clk 0:00:36]}  c3 {[%clk 0:01:06]} 36. Re2 {[%clk 0:00:36]}  Ra4 {[%clk 0:01:04]} 37. Re4 {[%clk 0:00:27]}  Ra2 {[%clk 0:00:59]} 38. Re2 {[%clk 0:00:25]}  Ra4 {[%clk 0:00:59]} 39. Kg1 {[%clk 0:00:23]}  Ra7 {[%clk 0:00:52]} 40. Rc5 {[%clk 0:00:22]}  R7xa5 {[%clk 0:00:52]} 41. Rxc3 {[%clk 0:00:22]}  Re5 {[%clk 0:00:51]} 42. Kf2 {[%clk 0:00:21]}  Ra7 {[%clk 0:00:44]} 43. Rc4 {[%clk 0:00:15]}  Ra2 {[%clk 0:00:44]} 44. Rd2 {[%clk 0:00:14]}  Rf5 {[%clk 0:00:42]} 45. Rd8 {[%clk 0:00:14]}  Rh5 {[%clk 0:00:35]} 46. Rxf4 {[%clk 0:00:05]}  Rxc2+ {[%clk 0:00:34]} 47. Kg3 {[%clk 0:00:06]}  Re5 {[%clk 0:00:31]} 48. Rg4+ {[%clk 0:00:06]}  Kh7 {[%clk 0:00:30]} 49. Rdg8 {[%clk 0:00:05]}  h5 {[%clk 0:00:28]} 50. R4g7+ {[%clk 0:00:06]}  Kh6 {[%clk 0:00:28]} 51. Rxf7 {[%clk 0:00:07]}  Re6 {[%clk 0:00:24]} 52. Kf4 {[%clk 0:00:05]}  Ra6 {[%clk 0:00:21]} 53. Rgg7 {[%clk 0:00:02]}  Rc4+ {[%clk 0:00:19]} 54. Kg3 {[%clk 0:00:02]}  Rc2 {[%clk 0:00:19]} 55. Rh7+ {[%clk 0:00:02]}  Kg6 {[%clk 0:00:19]} 56. Rfg7+ {[%clk 0:00:03]}  Kf5 {[%clk 0:00:20]} 57. Rxh5+ {[%clk 0:00:04]}  Ke6 {[%clk 0:00:20]} 58. Rb5 {[%clk 0:00:03]}  Rd2 {[%clk 0:00:19]} 59. h5 {[%clk 0:00:03]}  Rd1 {[%clk 0:00:19]} 60. Kh2 {[%clk 0:00:02]}  Rd4 {[%clk 0:00:19]} 61. Kh3 {[%clk 0:00:03]}  Rd1 {[%clk 0:00:19]} 62. g4 {[%clk 0:00:03]}  Rh1+ {[%clk 0:00:19]} 63. Kg3 {[%clk 0:00:03]}  Rg1+ {[%clk 0:00:16]} 64. Kf2 {[%clk 0:00:04]}  Rh1 {[%clk 0:00:17]} 65. Rgb7 {[%clk 0:00:04]}  Ra2+ {[%clk 0:00:15]} 66. Kg3 {[%clk 0:00:04]}  Rg1+ {[%clk 0:00:15]} 67. Kf4 {[%clk 0:00:05]}  Ra4+ {[%clk 0:00:15]} 68. Rb4 {[%clk 0:00:06]}  Rga1 {[%clk 0:00:12]} 69. Rxa4 {[%clk 0:00:05]}  Rxa4+ {[%clk 0:00:12]} 70. Kg3 {[%clk 0:00:06]}  f5 {[%clk 0:00:12]} 71. Rb6+ {[%clk 0:00:06]}  Kf7 {[%clk 0:00:12]} 72. g5 {[%clk 0:00:06]}  Kg7 {[%clk 0:00:11]} 73. Rb7+ {[%clk 0:00:06]}  Kg8 {[%clk 0:00:10]} 74. h6 {[%clk 0:00:06]}  Ra6 {[%clk 0:00:05]} 75. Kf4 {[%clk 0:00:06]}  Kh8 {[%clk 0:00:04]} 76. Re7 {[%clk 0:00:05]}  Ra5 {[%clk 0:00:05]} 77. g6 {[%clk 0:00:05]}  Ra8 {[%clk 0:00:06]} 78. Kxf5 {[%clk 0:00:06]}  Rf8+ {[%clk 0:00:06]} 79. Kg5 {[%clk 0:00:06]}  Rb8 {[%clk 0:00:06]} 80. f4 {[%clk 0:00:07]}  Kg8 {[%clk 0:00:07]} 81. f5 {[%clk 0:00:07]}  Kh8 {[%clk 0:00:08]} 82. Rd7 {[%clk 0:00:06]}  Ra8 {[%clk 0:00:08]} 83. Rd5 {[%clk 0:00:04]}  Kg8 {[%clk 0:00:05]} 84. h7+ {[%clk 0:00:04]}  Kh8 {[%clk 0:00:06]} 85. Kh6 {[%clk 0:00:04]}  Ra6 {[%clk 0:00:05]} 86. Rd8# {[%clk 0:00:04]} 1-0


[Site "https://www.chess.com"]

[Event "Titled Tuesday Blitz May 23 Early 2023"]
[White "Vakhlamov, Igor L."]
[Black "Paravyan, David"]
[WhiteFideId "24126748"]
[BlackFideId "4194985"]
[WhiteElo "2407"]
[BlackElo "2563"]
[Result "1/2-1/2"]
[Round "03"]
[TimeControl "180+2"]
[Date "2023.05.23"]
[WhiteClock "0:00:37"]
[BlackClock "0:00:29"]

1. e4 {[%clk 0:02:59]}  e5 {[%clk 0:03:00]} 2. Nf3 {[%clk 0:03:00]}  Nf6 {[%clk 0:02:59]} 3. Nc3 {[%clk 0:03:01]}  Nc6 {[%clk 0:02:59]} 4. Bb5 {[%clk 0:03:01]}  Nd4 {[%clk 0:02:58]} 5. Nxd4 {[%clk 0:03:00]}  exd4 {[%clk 0:02:55]} 6. e5 {[%clk 0:03:01]}  dxc3 {[%clk 0:02:56]} 7. exf6 {[%clk 0:03:01]}  Qxf6 {[%clk 0:02:57]} 8. dxc3 {[%clk 0:03:01]}  Bc5 {[%clk 0:02:56]} 9. O-O {[%clk 0:03:01]}  O-O {[%clk 0:02:56]} 10. a4 {[%clk 0:02:56]}  a6 {[%clk 0:02:47]} 11. Bd3 {[%clk 0:02:56]}  d6 {[%clk 0:02:47]} 12. Qd2 {[%clk 0:02:47]}  Bd7 {[%clk 0:02:44]} 13. Qf4 {[%clk 0:02:45]}  Qxf4 {[%clk 0:02:44]} 14. Bxf4 {[%clk 0:02:46]}  Rfe8 {[%clk 0:02:34]} 15. a5 {[%clk 0:02:46]}  Re7 {[%clk 0:02:27]} 16. Rfe1 {[%clk 0:02:46]}  Rxe1+ {[%clk 0:02:24]} 17. Rxe1 {[%clk 0:02:46]}  Be6 {[%clk 0:02:01]} 18. h4 {[%clk 0:02:37]}  h6 {[%clk 0:01:59]} 19. Kf1 {[%clk 0:02:36]}  Kf8 {[%clk 0:01:59]} 20. b3 {[%clk 0:02:28]}  Re8 {[%clk 0:01:56]} 21. f3 {[%clk 0:02:14]}  Ba7 {[%clk 0:01:47]} 22. Be4 {[%clk 0:02:05]}  d5 {[%clk 0:01:42]} 23. Bd3 {[%clk 0:02:04]}  Bb8 {[%clk 0:01:37]} 24. b4 {[%clk 0:01:59]}  c6 {[%clk 0:01:34]} 25. Bxb8 {[%clk 0:01:56]}  Rxb8 {[%clk 0:01:35]} 26. Kf2 {[%clk 0:01:56]}  Ke7 {[%clk 0:01:36]} 27. Ke3 {[%clk 0:01:55]}  Kd6 {[%clk 0:01:35]} 28. Kd4 {[%clk 0:01:55]}  Rc8 {[%clk 0:01:28]} 29. Rb1 {[%clk 0:01:39]}  g5 {[%clk 0:01:27]} 30. hxg5 {[%clk 0:01:37]}  hxg5 {[%clk 0:01:28]} 31. c4 {[%clk 0:01:36]}  dxc4 {[%clk 0:01:27]} 32. Bxc4 {[%clk 0:01:36]}  Rh8 {[%clk 0:01:11]} 33. Bxe6 {[%clk 0:01:36]}  fxe6 {[%clk 0:01:12]} 34. Rd1 {[%clk 0:01:25]}  Rh4+ {[%clk 0:00:59]} 35. g4 {[%clk 0:01:18]}  Rh2 {[%clk 0:00:58]} 36. c3 {[%clk 0:01:07]}  e5+ {[%clk 0:00:28]} 37. Ke4+ {[%clk 0:01:05]}  Ke6 {[%clk 0:00:28]} 38. Rd8 {[%clk 0:01:02]}  Re2+ {[%clk 0:00:28]} 39. Kd3 {[%clk 0:01:02]}  Rf2 {[%clk 0:00:29]} 40. Ke3 {[%clk 0:01:02]}  Rc2 {[%clk 0:00:29]} 41. Kd3 {[%clk 0:00:52]}  Rf2 {[%clk 0:00:29]} 42. Ke4 {[%clk 0:00:37]}  Re2+ {[%clk 0:00:29]} 43. Kd3 {[%clk 0:00:37]}  Rf2 {[%clk 0:00:29]} 1/2-1/2


[Site "https://www.chess.com"]

[Event "Titled Tuesday Blitz May 23 Early 2023"]
[White "Martinez Ramirez, Lennis"]
[Black "Lenderman, Aleksandr"]
[WhiteFideId "3509079"]
[BlackFideId "2021285"]
[WhiteElo "2410"]
[BlackElo "2607"]
[Result "0-1"]
[Round "03"]
[TimeControl "180+2"]
[Date "2023.05.23"]
[WhiteClock "0:00:00"]
[BlackClock "0:01:08"]

1. c4 {[%clk 0:02:59]}  b6 {[%clk 0:02:57]} 2. Nc3 {[%clk 0:02:57]}  Bb7 {[%clk 0:02:54]} 3. Nf3 {[%clk 0:02:57]}  c5 {[%clk 0:02:51]} 4. g3 {[%clk 0:02:57]}  Nf6 {[%clk 0:02:49]} 5. Bg2 {[%clk 0:02:57]}  e6 {[%clk 0:02:50]} 6. O-O {[%clk 0:02:57]}  Be7 {[%clk 0:02:50]} 7. Re1 {[%clk 0:02:56]}  d5 {[%clk 0:02:48]} 8. cxd5 {[%clk 0:02:55]}  Nxd5 {[%clk 0:02:49]} 9. d4 {[%clk 0:02:49]}  cxd4 {[%clk 0:02:41]} 10. Nxd5 {[%clk 0:02:39]}  Bxd5 {[%clk 0:02:42]} 11. Qxd4 {[%clk 0:02:03]}  Bf6 {[%clk 0:02:40]} 12. Qf4 {[%clk 0:01:49]}  O-O {[%clk 0:02:40]} 13. e4 {[%clk 0:01:49]}  Bb7 {[%clk 0:02:40]} 14. e5 {[%clk 0:01:49]}  Be7 {[%clk 0:02:41]} 15. Qg4 {[%clk 0:01:49]}  Qd3 {[%clk 0:02:33]} 16. Bg5 {[%clk 0:01:35]}  Bxg5 {[%clk 0:02:26]} 17. Rad1 {[%clk 0:01:35]}  Qg6 {[%clk 0:02:18]} 18. Nxg5 {[%clk 0:01:32]}  Bxg2 {[%clk 0:02:17]} 19. Kxg2 {[%clk 0:01:32]}  Nc6 {[%clk 0:02:14]} 20. Rd6 {[%clk 0:01:09]}  Rac8 {[%clk 0:02:11]} 21. Qf4 {[%clk 0:01:08]}  Ne7 {[%clk 0:01:53]} 22. h4 {[%clk 0:00:43]}  Nd5 {[%clk 0:01:51]} 23. Qa4 {[%clk 0:00:32]}  Rc2 {[%clk 0:01:44]} 24. Qe4 {[%clk 0:00:04]}  Rxb2 {[%clk 0:01:41]} 25. Qxg6 {[%clk 0:00:03]}  hxg6 {[%clk 0:01:28]} 26. a4 {[%clk 0:00:03]}  Ra2 {[%clk 0:01:27]} 27. Re4 {[%clk 0:00:03]}  Rc2 {[%clk 0:01:19]} 28. Rd7 {[%clk 0:00:02]}  a5 {[%clk 0:01:19]} 29. Rd4 {[%clk 0:00:01]}  Ne3+ {[%clk 0:01:15]} 30. Kf3 {[%clk 0:00:01]}  Nf5 {[%clk 0:01:16]} 31. Rd3 {[%clk 0:00:01]}  Rc5 {[%clk 0:01:15]} 32. Rb7 {[%clk 0:00:02]}  Rxe5 {[%clk 0:01:12]} 33. Rdd7 {[%clk 0:00:02]}  Nh6 {[%clk 0:01:12]} 34. Ne4 {[%clk 0:00:02]}  Rf5+ {[%clk 0:01:07]} 35. Ke3 {[%clk 0:00:01]}  Ng4+ {[%clk 0:01:08]} 36. Ke2 {[%clk 0:00:00]}  Nf6 {[%clk 0:01:08]} 0-1


[Site "https://www.chess.com"]

[Event "Titled Tuesday Blitz May 23 Early 2023"]
[White "Svane, Frederik"]
[Black "Zhu, Jiner"]
[WhiteFideId "12923044"]
[BlackFideId "8608059"]
[WhiteElo "2502"]
[BlackElo "2384"]
[Result "1-0"]
[Round "03"]
[TimeControl "180+2"]
[Date "2023.05.23"]
[WhiteClock "0:01:08"]
[BlackClock "0:00:00"]

1. c4 {[%clk 0:02:46]}  e5 {[%clk 0:02:58]} 2. Nc3 {[%clk 0:02:46]}  Nf6 {[%clk 0:02:58]} 3. g3 {[%clk 0:02:46]}  d5 {[%clk 0:02:57]} 4. cxd5 {[%clk 0:02:45]}  Nxd5 {[%clk 0:02:58]} 5. Bg2 {[%clk 0:02:45]}  Nb6 {[%clk 0:02:59]} 6. Nf3 {[%clk 0:02:46]}  Nc6 {[%clk 0:02:59]} 7. O-O {[%clk 0:02:47]}  Be7 {[%clk 0:02:59]} 8. d3 {[%clk 0:02:47]}  O-O {[%clk 0:02:59]} 9. a3 {[%clk 0:02:47]}  Be6 {[%clk 0:02:58]} 10. Be3 {[%clk 0:02:46]}  a5 {[%clk 0:02:57]} 11. Rc1 {[%clk 0:02:45]}  Nd5 {[%clk 0:02:57]} 12. Nxd5 {[%clk 0:02:27]}  Bxd5 {[%clk 0:02:58]} 13. Qa4 {[%clk 0:02:27]}  Re8 {[%clk 0:02:48]} 14. Rfe1 {[%clk 0:02:17]}  Bf8 {[%clk 0:02:45]} 15. Qb5 {[%clk 0:01:49]}  a4 {[%clk 0:02:42]} 16. Qxb7 {[%clk 0:01:45]}  Nd4 {[%clk 0:01:02]} 17. Qxc7 {[%clk 0:01:44]}  Nxf3+ {[%clk 0:01:02]} 18. Bxf3 {[%clk 0:01:42]}  Bxf3 {[%clk 0:01:02]} 19. exf3 {[%clk 0:01:35]}  Qxd3 {[%clk 0:01:01]} 20. Qc4 {[%clk 0:01:35]}  Qg6 {[%clk 0:00:42]} 21. Qe4 {[%clk 0:01:32]}  Ra5 {[%clk 0:00:35]} 22. Rc4 {[%clk 0:01:30]}  Rb8 {[%clk 0:00:22]} 23. Bd2 {[%clk 0:01:24]}  Ra6 {[%clk 0:00:06]} 24. Qxe5 {[%clk 0:01:18]}  Qd3 {[%clk 0:00:03]} 25. Qxb8 {[%clk 0:01:10]}  Qxc4 {[%clk 0:00:00]} 26. Bb4 {[%clk 0:01:08]} 1-0


[Site "https://www.chess.com"]

[Event "Titled Tuesday Blitz May 23 Early 2023"]
[White "Stoleriu, George"]
[Black "Sjugirov, Sanan"]
[WhiteFideId "1227505"]
[BlackFideId "4189302"]
[WhiteElo "2308"]
[BlackElo "2569"]
[Result "0-1"]
[Round "03"]
[TimeControl "180+2"]
[Date "2023.05.23"]
[WhiteClock "0:00:02"]
[BlackClock "0:00:03"]

1. e4 {[%clk 0:03:00]}  c5 {[%clk 0:02:59]} 2. b3 {[%clk 0:02:58]}  d6 {[%clk 0:02:54]} 3. Bb2 {[%clk 0:02:56]}  e5 {[%clk 0:02:52]} 4. Bb5+ {[%clk 0:02:32]}  Bd7 {[%clk 0:02:44]} 5. Bxd7+ {[%clk 0:02:28]}  Qxd7 {[%clk 0:02:44]} 6. d3 {[%clk 0:02:15]}  Nc6 {[%clk 0:02:43]} 7. Ne2 {[%clk 0:02:15]}  Be7 {[%clk 0:02:20]} 8. O-O {[%clk 0:02:10]}  Bf6 {[%clk 0:01:52]} 9. Nd2 {[%clk 0:01:51]}  h5 {[%clk 0:01:38]} 10. Nc4 {[%clk 0:01:38]}  h4 {[%clk 0:01:38]} 11. h3 {[%clk 0:01:36]}  g5 {[%clk 0:01:32]} 12. Ne3 {[%clk 0:01:32]}  Nge7 {[%clk 0:01:28]} 13. Nc3 {[%clk 0:01:30]}  Bg7 {[%clk 0:01:19]} 14. Qg4 {[%clk 0:01:27]}  Qxg4 {[%clk 0:01:18]} 15. hxg4 {[%clk 0:01:24]}  Kd7 {[%clk 0:01:15]} 16. Ncd5 {[%clk 0:01:19]}  Nxd5 {[%clk 0:01:10]} 17. Nxd5 {[%clk 0:01:16]}  Ne7 {[%clk 0:00:58]} 18. Ne3 {[%clk 0:01:15]}  Rhb8 {[%clk 0:00:51]} 19. a4 {[%clk 0:01:12]}  b6 {[%clk 0:00:50]} 20. f3 {[%clk 0:01:09]}  a6 {[%clk 0:00:50]} 21. Kf2 {[%clk 0:00:58]}  Bf6 {[%clk 0:00:49]} 22. Rh1 {[%clk 0:00:53]}  Nc6 {[%clk 0:00:48]} 23. g3 {[%clk 0:00:45]}  b5 {[%clk 0:00:34]} 24. Bc3 {[%clk 0:00:20]}  Ke6 {[%clk 0:00:20]} 25. Nf5 {[%clk 0:00:19]}  c4 {[%clk 0:00:12]} 26. dxc4 {[%clk 0:00:07]}  bxc4 {[%clk 0:00:12]} 27. Rhd1 {[%clk 0:00:07]}  Nd4 {[%clk 0:00:07]} 28. gxh4 {[%clk 0:00:03]}  gxh4 {[%clk 0:00:06]} 29. Nxd4+ {[%clk 0:00:03]}  exd4 {[%clk 0:00:07]} 30. Bxd4 {[%clk 0:00:04]}  Bxd4+ {[%clk 0:00:07]} 31. Rxd4 {[%clk 0:00:05]}  cxb3 {[%clk 0:00:08]} 32. cxb3 {[%clk 0:00:06]}  Rxb3 {[%clk 0:00:08]} 33. Rad1 {[%clk 0:00:06]}  Rb2+ {[%clk 0:00:05]} 34. R1d2 {[%clk 0:00:05]}  Rxd2+ {[%clk 0:00:06]} 35. Rxd2 {[%clk 0:00:06]}  Rb8 {[%clk 0:00:05]} 36. Kg2 {[%clk 0:00:02]}  Rb4 {[%clk 0:00:04]} 37. Kh3 {[%clk 0:00:02]}  Rb3 {[%clk 0:00:04]} 38. Rf2 {[%clk 0:00:01]}  Ke5 {[%clk 0:00:04]} 39. Kxh4 {[%clk 0:00:02]}  Kf4 {[%clk 0:00:05]} 40. Kh5 {[%clk 0:00:02]}  Rxf3 {[%clk 0:00:03]} 41. Rd2 {[%clk 0:00:02]}  Rh3# {[%clk 0:00:03]} 0-1


[Site "https://www.chess.com"]

[Event "Titled Tuesday Blitz May 23 Early 2023"]
[White "Domingo Nunez, Ruben"]
[Black "Narayanan, Srinath"]
[WhiteFideId "22245570"]
[BlackFideId "5018420"]
[WhiteElo "2404"]
[BlackElo "2438"]
[Result "0-1"]
[Round "03"]
[TimeControl "180+2"]
[Date "2023.05.23"]
[WhiteClock "0:00:03"]
[BlackClock "0:00:51"]

1. c4 {[%clk 0:03:00]}  e5 {[%clk 0:02:59]} 2. g3 {[%clk 0:02:59]}  d6 {[%clk 0:02:57]} 3. Bg2 {[%clk 0:03:00]}  f5 {[%clk 0:02:57]} 4. Nc3 {[%clk 0:02:58]}  Nf6 {[%clk 0:02:58]} 5. e3 {[%clk 0:02:55]}  g6 {[%clk 0:02:58]} 6. Nge2 {[%clk 0:02:55]}  Bg7 {[%clk 0:02:58]} 7. d4 {[%clk 0:02:56]}  O-O {[%clk 0:02:58]} 8. Rb1 {[%clk 0:02:55]}  Nc6 {[%clk 0:02:56]} 9. b4 {[%clk 0:02:55]}  exd4 {[%clk 0:02:55]} 10. exd4 {[%clk 0:02:56]}  Re8 {[%clk 0:02:53]} 11. O-O {[%clk 0:02:55]}  Ne4 {[%clk 0:02:54]} 12. Nxe4 {[%clk 0:02:21]}  fxe4 {[%clk 0:02:55]} 13. b5 {[%clk 0:02:21]}  Na5 {[%clk 0:02:54]} 14. Qa4 {[%clk 0:02:20]}  b6 {[%clk 0:02:53]} 15. Nc3 {[%clk 0:01:31]}  Bf5 {[%clk 0:02:51]} 16. Be3 {[%clk 0:01:31]}  a6 {[%clk 0:02:51]} 17. Rfc1 {[%clk 0:01:25]}  axb5 {[%clk 0:02:39]} 18. cxb5 {[%clk 0:01:26]}  d5 {[%clk 0:02:31]} 19. Bf1 {[%clk 0:01:23]}  Nc4 {[%clk 0:02:31]} 20. Qb3 {[%clk 0:01:20]}  Ra3 {[%clk 0:02:06]} 21. Qc2 {[%clk 0:01:21]}  Nxe3 {[%clk 0:02:01]} 22. fxe3 {[%clk 0:01:21]}  Bh6 {[%clk 0:02:01]} 23. Nxd5 {[%clk 0:01:18]}  Rxe3 {[%clk 0:01:59]} 24. Qxc7 {[%clk 0:01:12]}  Kh8 {[%clk 0:01:39]} 25. Bc4 {[%clk 0:00:18]}  Ra3 {[%clk 0:01:14]} 26. Re1 {[%clk 0:00:14]}  Qxc7 {[%clk 0:01:12]} 27. Nxc7 {[%clk 0:00:14]}  Rc8 {[%clk 0:01:13]} 28. g4 {[%clk 0:00:04]}  Rxc7 {[%clk 0:01:00]} 29. d5 {[%clk 0:00:05]}  Rxc4 {[%clk 0:00:51]} 30. gxf5 {[%clk 0:00:06]}  gxf5 {[%clk 0:00:51]} 31. d6 {[%clk 0:00:05]}  Rd4 {[%clk 0:00:51]} 32. Rbd1 {[%clk 0:00:03]}  Rad3 {[%clk 0:00:51]} 0-1


[Site "https://www.chess.com"]

[Event "Titled Tuesday Blitz May 23 Early 2023"]
[White "Drygalov, Andrey"]
[Black "Pacan-Milej, Kosma"]
[WhiteFideId "24171735"]
[BlackFideId "21800537"]
[WhiteElo "2466"]
[BlackElo "2302"]
[Result "1-0"]
[Round "03"]
[TimeControl "180+2"]
[Date "2023.05.23"]
[WhiteClock "0:01:32"]
[BlackClock "0:01:10"]

1. e4 {[%clk 0:03:00]}  c6 {[%clk 0:02:59]} 2. Nf3 {[%clk 0:03:00]}  d5 {[%clk 0:03:00]} 3. d3 {[%clk 0:03:01]}  dxe4 {[%clk 0:03:00]} 4. dxe4 {[%clk 0:03:02]}  Qxd1+ {[%clk 0:03:01]} 5. Kxd1 {[%clk 0:03:03]}  Nd7 {[%clk 0:03:01]} 6. Nbd2 {[%clk 0:03:03]}  f5 {[%clk 0:03:01]} 7. exf5 {[%clk 0:03:02]}  Nc5 {[%clk 0:02:58]} 8. Nd4 {[%clk 0:03:01]}  Nh6 {[%clk 0:02:56]} 9. N2f3 {[%clk 0:02:48]}  Nxf5 {[%clk 0:02:51]} 10. Nxf5 {[%clk 0:02:42]}  Bxf5 {[%clk 0:02:52]} 11. Be3 {[%clk 0:02:42]}  O-O-O+ {[%clk 0:02:41]} 12. Kc1 {[%clk 0:02:40]}  e6 {[%clk 0:02:37]} 13. Nd4 {[%clk 0:02:36]}  Bg6 {[%clk 0:02:33]} 14. Bc4 {[%clk 0:02:35]}  e5 {[%clk 0:02:28]} 15. Nf3 {[%clk 0:02:34]}  Bd6 {[%clk 0:02:24]} 16. Rd1 {[%clk 0:02:34]}  Bh5 {[%clk 0:02:12]} 17. Rxd6 {[%clk 0:02:30]}  Rxd6 {[%clk 0:02:01]} 18. Bxc5 {[%clk 0:02:30]}  Rdd8 {[%clk 0:02:00]} 19. b3 {[%clk 0:02:13]}  e4 {[%clk 0:01:58]} 20. Nd2 {[%clk 0:02:06]}  Rhe8 {[%clk 0:01:47]} 21. Bxa7 {[%clk 0:01:56]}  Kc7 {[%clk 0:01:47]} 22. Be3 {[%clk 0:01:55]}  b6 {[%clk 0:01:46]} 23. Kb2 {[%clk 0:01:54]}  c5 {[%clk 0:01:45]} 24. Re1 {[%clk 0:01:52]}  h6 {[%clk 0:01:36]} 25. a4 {[%clk 0:01:51]}  g5 {[%clk 0:01:35]} 26. Nb1 {[%clk 0:01:51]}  Rf8 {[%clk 0:01:29]} 27. Nc3 {[%clk 0:01:51]}  Bf7 {[%clk 0:01:30]} 28. Bxf7 {[%clk 0:01:46]}  Rxf7 {[%clk 0:01:31]} 29. Nxe4 {[%clk 0:01:45]}  Re8 {[%clk 0:01:31]} 30. Nc3 {[%clk 0:01:44]}  g4 {[%clk 0:01:27]} 31. Rd1 {[%clk 0:01:40]}  h5 {[%clk 0:01:24]} 32. Nb5+ {[%clk 0:01:40]}  Kb8 {[%clk 0:01:22]} 33. g3 {[%clk 0:01:34]}  Rf3 {[%clk 0:01:10]} 34. Bf4+ {[%clk 0:01:32]} 1-0


[Site "https://www.chess.com"]

[Event "Titled Tuesday Blitz May 23 Early 2023"]
[White "Mendez Fortes, Eduardo Jesus"]
[Black "Matlakov, Maxim"]
[WhiteFideId "3502376"]
[BlackFideId "4168003"]
[WhiteElo "2307"]
[BlackElo "2666"]
[Result "0-1"]
[Round "03"]
[TimeControl "180+2"]
[Date "2023.05.23"]
[WhiteClock "0:00:48"]
[BlackClock "0:00:47"]

1. e4 {[%clk 0:03:00]}  c5 {[%clk 0:02:56]} 2. Nf3 {[%clk 0:03:00]}  e6 {[%clk 0:02:55]} 3. d4 {[%clk 0:03:01]}  cxd4 {[%clk 0:02:56]} 4. Nxd4 {[%clk 0:03:02]}  Nc6 {[%clk 0:02:55]} 5. Nc3 {[%clk 0:03:02]}  Qc7 {[%clk 0:02:55]} 6. Be3 {[%clk 0:03:02]}  a6 {[%clk 0:02:55]} 7. Qd2 {[%clk 0:03:02]}  Nf6 {[%clk 0:02:52]} 8. O-O-O {[%clk 0:03:03]}  Bb4 {[%clk 0:02:46]} 9. f3 {[%clk 0:03:03]}  O-O {[%clk 0:02:47]} 10. a3 {[%clk 0:02:58]}  Be7 {[%clk 0:02:46]} 11. Bf2 {[%clk 0:02:58]}  b5 {[%clk 0:02:43]} 12. Bg3 {[%clk 0:02:58]}  Qb6 {[%clk 0:02:26]} 13. Nb3 {[%clk 0:02:58]}  d6 {[%clk 0:02:12]} 14. Qf2 {[%clk 0:02:43]}  Qc7 {[%clk 0:02:06]} 15. Nd4 {[%clk 0:02:37]}  Bb7 {[%clk 0:02:04]} 16. Ndxb5 {[%clk 0:02:19]}  axb5 {[%clk 0:02:05]} 17. Nxb5 {[%clk 0:02:20]}  Qa5 {[%clk 0:02:03]} 18. Bxd6 {[%clk 0:02:20]}  Bxd6 {[%clk 0:01:59]} 19. Nxd6 {[%clk 0:02:21]}  Ba6 {[%clk 0:01:59]} 20. Bxa6 {[%clk 0:02:18]}  Qxa6 {[%clk 0:02:00]} 21. Qc5 {[%clk 0:02:14]}  Rfb8 {[%clk 0:01:57]} 22. Rd3 {[%clk 0:02:07]}  Nd7 {[%clk 0:01:53]} 23. Qc3 {[%clk 0:02:03]}  Nde5 {[%clk 0:01:49]} 24. Rd2 {[%clk 0:02:00]}  h6 {[%clk 0:01:44]} 25. f4 {[%clk 0:01:53]}  Ng6 {[%clk 0:01:34]} 26. g3 {[%clk 0:01:53]}  Nge7 {[%clk 0:01:32]} 27. f5 {[%clk 0:01:48]}  Qa5 {[%clk 0:01:22]} 28. Qxa5 {[%clk 0:01:35]}  Rxa5 {[%clk 0:01:23]} 29. fxe6 {[%clk 0:01:35]}  fxe6 {[%clk 0:01:24]} 30. Nc4 {[%clk 0:01:25]}  Rc5 {[%clk 0:01:20]} 31. b3 {[%clk 0:01:22]}  Ng6 {[%clk 0:01:19]} 32. Rhd1 {[%clk 0:01:13]}  Kh7 {[%clk 0:01:15]} 33. Rd7 {[%clk 0:01:08]}  Nge5 {[%clk 0:01:12]} 34. Nxe5 {[%clk 0:01:07]}  Nxe5 {[%clk 0:01:13]} 35. Re7 {[%clk 0:01:06]}  Rxb3 {[%clk 0:01:10]} 36. Rxe6 {[%clk 0:01:03]}  Rbc3 {[%clk 0:01:08]} 37. Rd2 {[%clk 0:01:00]}  Nf3 {[%clk 0:01:06]} 38. Rf2 {[%clk 0:00:56]}  Nd4 {[%clk 0:01:03]} 39. Rd6 {[%clk 0:00:56]}  Nxc2 {[%clk 0:01:01]} 40. Kb2 {[%clk 0:00:56]}  Nxa3 {[%clk 0:00:55]} 41. Rd7 {[%clk 0:00:54]}  Re3 {[%clk 0:00:48]} 42. Rff7 {[%clk 0:00:52]}  Rc2+ {[%clk 0:00:47]} 43. Ka1 {[%clk 0:00:48]}  Re1+ {[%clk 0:00:47]} 0-1


[Site "https://www.chess.com"]